Cogmind - Beta 16 @@@ ROGUE MODE // 2025.11.22 @ 12:19:26 Player: Naughtyusername Result: Self-destructed Performance ------------- Evolutions (6) 3000 Regions Visited (17) 3400 Robots Destroyed (191) 955 Value Destroyed (7425) 7425 Prototype IDs (67) 1340 Alien Tech Used (0) 0 Bonus (2680) 2680 TOTAL SCORE: 18800 Bonus ------- Registered with UFD 300 Met Optimus in HQ 500 Met Data Miner 300 Met Warlord at Base 500 MAIN.C Attacked Warlord 500 Warlord Defense Kills 580 Cogmind --------- Core Integrity 967/1150 Matter 225/300 Energy 70/100 System Corruption 5% Temperature Cool (0) Movement Walking (115) Location -4/Factory Parts ------- > --- POWER (2) -------- (None) > --- PROPULSION (6) --- Myomer Leg Myomer Leg Myomer Leg Enhanced Biometal Leg > --- UTILITY (8) ------ Advanced Cooling System High-capacity Storage Unit Advanced Signal Interpreter Experimental Targeting Computer Makeshift Ablative Armor EM Shield A0-MCA's Component Scanner > --- WEAPON (3) ------- Vortex Cannon > --- INVENTORY (20) --- Myomer Leg Advanced Cryofiber Web Advanced Cooling System High-capacity Storage Unit Improved Sensor Array Advanced Terrain Scan Processor Advanced Terrain Scan Processor Quantum Capacitor Improved Weapon Cycler Advanced Transmission Jammer Experimental Focal Shield Experimental Thermal Shield Advanced Remote Shield Peak State ------------ > --- POWER ------------ Vortex Chain Reactor > --- PROPULSION ------- Myomer Leg Myomer Leg Myomer Leg Enhanced Biometal Leg Experimental Myomer Leg Experimental Myomer Leg > --- UTILITY ---------- Advanced Cooling System High-capacity Storage Unit Advanced Signal Interpreter Improved Heavy Armor Plating EM Shield Advanced Shield Generator A0-MCA's Component Scanner > --- WEAPON ----------- Matter Neutralizer Vortex Cannon Power Sword > --- INVENTORY -------- Myomer Leg Advanced Cryofiber Web Advanced Cooling System High-capacity Storage Unit Improved Sensor Array Advanced Terrain Scan Processor Advanced Terrain Scan Processor Experimental Targeting Computer Quantum Capacitor Improved Weapon Cycler Advanced Transmission Jammer Makeshift Ablative Armor Experimental Focal Shield Experimental Thermal Shield Advanced Remote Shield Vortex Cannon [Rating: 140] Favorites ----------- Power Cooled Ion Engine Engine Cooled Ion Engine Power Core Neutrino Core Reactor Vortex Chain Reactor Propulsion Light Treads Treads Light Treads Leg Carbon-fiber Leg Wheel Armored Wheel Hover Unit Cooled Antigrav System Utility High-capacity Storage Unit Device Improved Sensor Array Storage High-capacity Storage Unit Processor Advanced Targeting Computer Hackware Improved Hacking Suite Protection Light Armor Plating Weapon Phase Cannon Energy Gun Thermic Laser Energy Cannon Phase Cannon Ballistic Gun Heavy Assault Rifle Ballistic Cannon Heavy Flak Cannon Launcher Heavy Rocket Launcher Special Weapon Plasma Cutter Impact Weapon Heavy Hammer Slashing Weapon Power Sword Special Melee Weapon Datajack Build | -11 -10 -10 -9 -9 -9 -9 -6 -6 -6 -6 -5 -5 -5 -5 -5 -4 -4 ------- Run | Yrd Mat Min Mat Sto Rec Scr Fac Low Low Dat Pro Fac Upp Upp War Pro Fac Slots Evolved 12 | . . . 2 . . . 6 . . . . 2 . . . . 2 Power 1 | . . . . . . . 1 . . . . . . . . . . Propulsion 4 | . . . 1 . . . 2 . . . . 1 . . . . . Utility 6 | . . . 1 . . . 3 . . . . 1 . . . . 1 Weapon 1 | . . . . . . . . . . . . . . . . . 1 Parts Attached 176 | 8 10 2 31 12 1 1 23 5 6 . 7 24 13 2 18 3 10 Power 22 | 1 2 . 3 . . 1 2 . . . 2 4 4 . 1 . 2 Engine 10 | 1 2 . 3 . . 1 1 . . . . 1 1 . . . . Core 9 | . . . . . . . 1 . . . 2 3 3 . . . . Reactor 3 | . . . . . . . . . . . . . . . 1 . 2 Propulsion 53 | 2 3 1 9 6 . . 4 . 1 . 3 7 4 . 11 1 1 Treads 22 | 2 1 . 8 6 . . 3 . . . . . 2 . . . . Leg 25 | . . . . . . . 1 . 1 . 3 7 1 . 10 1 1 Wheel 5 | . 2 1 1 . . . . . . . . . 1 . . . . Hover 1 | . . . . . . . . . . . . . . . 1 . . Flight . | . . . . . . . . . . . . . . . . . . Utility 61 | 2 4 1 9 3 . . 7 3 3 . 1 12 3 1 6 2 4 Device 28 | 1 . . 4 . . . 4 2 2 . 1 6 2 1 3 1 1 Storage 6 | 1 2 . . 1 . . . . . . . 1 . . . . 1 Processor 7 | . . . . . . . 2 1 . . . 1 1 . 1 . 1 Hackware 2 | . . . . . . . . . . . . 2 . . . . . Protection 18 | . 2 1 5 2 . . 1 . 1 . . 2 . . 2 1 1 Artifact . | . . . . . . . . . . . . . . . . . . Weapon 40 | 3 1 . 10 3 1 . 10 2 2 . 1 1 2 1 . . 3 Energy Gun 5 | . . . 2 1 . . 2 . . . . . . . . . . Energy Cannon 9 | . . . . . . . 2 . 1 . 1 . 1 1 . . 3 Ballistic Gun 17 | 3 1 . 5 2 . . 4 . 1 . . 1 . . . . . Ballistic Cannon 1 | . . . . . . . 1 . . . . . . . . . . Launcher 3 | . . . 1 . . . 1 1 . . . . . . . . . Special Weapon 2 | . . . . . 1 . . . . . . . 1 . . . . Impact Weapon 1 | . . . 1 . . . . . . . . . . . . . . Slashing Weapon 1 | . . . . . . . . 1 . . . . . . . . . Piercing Weapon . | . . . . . . . . . . . . . . . . . . Special Melee Weapon 1 | . . . 1 . . . . . . . . . . . . . . Unidentified Prototypes 6 | . . . . . . . 1 . . . . . . . 5 . . Corrupted Parts 3 | . . . . . . . . . . . . 1 . . 1 1 . System Corruption 21 | . . . . . . . . . . . . 11 . . 9 1 . Parts Lost 67 | . 1 9 6 2 . . 9 . 1 . 4 7 10 2 . 4 12 Power 8 | . 1 1 . . . . 1 . . . 1 . . 1 . . 3 Propulsion 23 | . . 2 1 . . . 4 . 1 . 1 5 4 1 . 1 3 Utility 21 | . . 2 3 1 . . 4 . . . 2 2 3 . . 1 3 Weapon 15 | . . 4 2 1 . . . . . . . . 3 . . 2 3 Highest Loss Streak 9 | . 1 7 2 2 . . 6 . 1 . 2 3 5 2 . 3 9 To Critical Strikes 1 | . . . . . . . . . . . . . . . . . 1 Average Backups 18 | 2 15 17 18 19 19 19 18 19 19 19 18 17 15 16 17 18 17 Power . | . . . 1 1 1 . . 1 1 1 1 . . . . . . Propulsion 2 | . 5 7 5 6 6 5 2 1 1 1 . . . . . 1 1 Utility 8 | . 4 4 3 3 3 3 6 11 10 10 9 10 9 11 13 13 13 Weapon 5 | . 3 5 8 7 8 9 8 5 5 6 6 5 4 3 3 3 1 Tool/Special . | . . . . . . . . . . . . . . . . . . Unused Backups 31 | . 2 . 6 . . 1 6 . 2 . . 2 . . 7 . 5 Power 3 | . 1 . 1 . . . . . . . . . . . 1 . . Propulsion 2 | . . . . . . . . . . . . . . . 1 . 1 Utility 14 | . 1 . . . . 1 1 . 2 . . 2 . . 3 . 4 Weapon 12 | . . . 5 . . . 5 . . . . . . . 2 . . Tool/Special . | . . . . . . . . . . . . . . . . . . Average Slot Usage (%) 93 | . 97 93 97 100 100 100 97 99 97 93 99 88 85 77 83 87 88 Engine 7 | . 14 12 9 11 11 11 7 13 13 13 2 1 2 5 . . . Core 2 | . . . . . . . 3 . . . 10 8 8 5 . . . Treads 16 | . 9 . 26 33 33 33 31 33 25 20 11 . 4 5 3 . . Leg 11 | . . . . . . . . . 4 6 20 28 20 7 22 34 30 Wheel 2 | . 18 26 6 . . . . . . . . . 2 5 3 . . Device 11 | . 8 . 11 11 11 11 19 12 12 13 12 10 13 11 8 5 10 Storage 7 | . 14 14 11 11 11 11 6 6 6 6 6 5 5 5 5 5 5 Processor 10 | . . . . . . . 10 19 20 20 16 11 16 17 17 17 14 Protection 4 | . 2 11 10 11 11 11 1 . . . 4 4 . . 2 5 5 Energy Gun 1 | . . . 1 . . . 1 11 1 . . . . . . . . Energy Cannon 4 | . . . . . . . 3 1 11 13 8 8 5 10 11 8 9 Ballistic Gun 6 | . 28 25 18 22 20 . 8 . . . . . . . . . . Special Weapon 1 | . . . . . . 11 . . . . . . . . . . . Impact Weapon 1 | . . . 1 . . 11 . . . . . . . . . . . Peak Build Rating 140 | 7 14 14 20 19 19 20 51 52 56 57 66 90 92 92 124 126 140 Average Rating 55 | 5 11 12 18 18 19 19 43 50 53 54 60 81 82 84 112 121 132 On Entrance 48 | . 7 14 5 19 19 19 20 44 51 54 57 66 83 83 82 124 122 Avg Prop Armor Cover (%) 10 | . . . 8 . . . 5 . 4 4 7 . 12 15 18 . . Naked Turns . | . . . . . . . . . . . . . . . . . . Heaviest Build 125 | 13 58 58 62 59 59 57 76 80 82 79 81 111 100 93 119 116 125 Greatest Support 158 | 40 40 24 66 66 66 66 106 103 103 60 80 116 101 28 158 158 158 Greatest Overweight (x) 3 | . 2 3 2 . . . 1 . 1 1 1 2 2 3 3 . . Average Overweight (x) . | . 1 2 . . . . . . . 1 . . . 2 1 . . Largest Inventory Capacity 20 | 8 20 20 20 20 20 20 20 20 20 20 20 20 20 20 20 20 20 Average Capacity 19 | 7 17 20 20 20 20 20 20 20 20 20 20 20 20 20 20 20 20 Most Carried 20 | 3 20 19 20 20 19 20 20 20 20 20 20 20 20 20 20 20 20 Average Carried 18 | 2 15 16 18 19 19 19 18 19 19 19 19 19 17 19 19 19 18 Final Capacity 20 | 8 20 20 20 20 20 20 20 20 20 20 20 20 20 20 20 20 20 Final Carried 20 | 3 19 15 18 19 19 19 20 20 20 19 20 17 20 20 20 20 14 Class Distribution -------------------- 56% | Scavenger-Mutant 34% | Mutant 9% | Derelict-Mutant Dominant Class ---------------- Mutant | -10/Materials Mutant | -10/Mines Mutant | -9/Materials Scavenger-Mutant | -9/Storage Scavenger-Mutant | -9/Recycling Mutant | -9/Scraptown Scavenger-Mutant | -6/Factory Scavenger-Mutant | -6/Lower Caves Scavenger-Mutant | -6/Lower Caves Scavenger-Mutant | -6/Data Miner Scavenger-Mutant | -5/Proximity Caves Scavenger-Mutant | -5/Factory Scavenger-Mutant | -5/Upper Caves Derelict-Mutant | -5/Upper Caves Derelict-Mutant | -5/Warlord Scavenger-Mutant | -4/Proximity Caves Scavenger-Mutant | -4/Factory Resources | -11 -10 -10 -9 -9 -9 -9 -6 -6 -6 -6 -5 -5 -5 -5 -5 -4 -4 ----------- Run | Yrd Mat Min Mat Sto Rec Scr Fac Low Low Dat Pro Fac Upp Upp War Pro Fac Matter Collected 5904 | 374 546 70 1137 366 108 39 650 230 263 . 305 710 431 131 326 162 56 Remotely . | . . . . . . . . . . . . . . . . . . Salvage Created 9018 | 221 705 92 1894 868 54 . 690 169 93 . 692 1647 649 68 245 733 198 Parts 403 | 21 35 3 102 55 3 . 28 2 12 . 24 56 13 8 10 24 7 Haulers Intercepted 9 | . 1 . 3 5 . . . . . . . . . . . . . Recyclers Shooed 6 | . 1 . 1 . . . 1 . . . . 2 . . . . 1 Parts Field Recycled . | . . . . . . . . . . . . . . . . . . Retrieved Matter . | . . . . . . . . . . . . . . . . . . Parts Self-Destructed 42 | . . . . . . . . 2 8 . 13 . 9 8 . 2 . Prevented 30 | . . . . . . . . . 3 . 7 . . . . 20 . Parts Restored . | . . . . . . . . . . . . . . . . . . Kills | -11 -10 -10 -9 -9 -9 -9 -6 -6 -6 -6 -5 -5 -5 -5 -5 -4 -4 ------- Run | Yrd Mat Min Mat Sto Rec Scr Fac Low Low Dat Pro Fac Upp Upp War Pro Fac Combat Hostiles Destroyed 148 | . 13 2 33 11 1 . 13 3 7 . 8 20 12 5 4 9 7 Melee 7 | . . . 3 . . . . . . . 2 2 . . . . . Guns 67 | . 13 2 28 11 1 . 10 2 . . . . . . . . . Cannons 40 | . . . . . . . . . . . 4 10 9 . 4 6 7 AOE 20 | . . . . . . . 3 . 7 . 1 1 3 5 . . . Classes Destroyed 18 | 3 4 . 3 . . . 2 . . . 3 . 2 . 1 . . Worker 2 | 2 . . . . . . . . . . . . . . . . . Builder 6 | . . . 1 . . . . . . . . 5 . . . . . Tunneler 7 | 5 1 . 1 . . . . . . . . . . . . . . Hauler 9 | . 1 . 3 5 . . . . . . . . . . . . . Recycler 8 | 1 . . 3 1 . . 1 . . . . 2 . . . . . Operator 3 | . 2 . 1 . . . . . . . . . . . . . . Drone 2 | . . . . . . . . . . . 2 . . . . . . Watcher 7 | . 1 . 3 2 . . . . . . . 1 . . . . . Swarmer 17 | . . . . . . . 4 . 7 . . . . 5 . . 1 Grunt 68 | . 13 2 23 4 . . 3 1 . . . 9 3 . 2 5 3 Brawler 6 | . . . 1 . . . . 1 . . 1 1 1 . . 1 . Duelist 2 | . . . . . . . . . . . 1 . 1 . . . . Sentry 27 | . . . 9 7 1 . 3 1 . . 1 3 1 . . 1 . Hunter 7 | . . . . . . . . . . . 2 1 . . . 2 2 Programmer 12 | . . . . . . . 3 . . . 1 6 . . 1 . 1 Executioner 1 | . . . . . . . . . . . . . . . 1 . . Decomposer 1 | . . . . . . . . 1 . . . . . . . . . Samaritan 1 | . . . . . . . . . . . . . 1 . . . . Thug 2 | . . . . . . . . . . . . . 2 . . . . Butcher 4 | . . . . . . . . . . . . . 4 . . . . Mutant 1 | . . . . . . . . . . . . . 1 . . . . Best Kill Streak 7 | 5 3 2 4 6 1 . 4 1 4 . 2 7 5 4 1 4 4 Combat Bots Only 5 | . 3 2 3 3 1 . 4 1 4 . 2 3 5 4 1 4 4 Max Kills in Single Turn 4 | 1 1 1 1 2 1 . 2 1 4 . 1 4 2 3 1 1 1 Gunslinging 1 | . . . . 1 . . . . . . . . . . . . . Exploded 4 | . . . . . . . 2 . 4 . 1 1 1 3 . . . Melee 1 | . . . 1 . . . . . . . 1 1 . . . . . Uniques/NPCs Destroyed . | . . . . . . . . . . . . . . . . . . Combat | -11 -10 -10 -9 -9 -9 -9 -6 -6 -6 -6 -5 -5 -5 -5 -5 -4 -4 -------- Run | Yrd Mat Min Mat Sto Rec Scr Fac Low Low Dat Pro Fac Upp Upp War Pro Fac Hostile Shots Fired 1164 | . 73 36 158 63 8 . 193 32 16 . 56 144 50 19 16 100 200 Missed 289 | . 14 5 39 12 3 . 57 12 2 . 10 38 10 3 4 33 47 Hits 875 | . 59 31 119 51 5 . 136 20 14 . 46 106 40 16 12 67 153 Melee 13 | . . . 7 . . . . . . . . . 5 . 1 . . Projectile 862 | . 59 31 112 51 5 . 136 20 14 . 46 106 35 16 11 67 153 AOE 11 | . . 11 . . . . . . . . . . . . . . . Critical Strikes 42 | . 2 1 7 2 1 . 3 . 1 . 1 4 4 . 2 3 11 Damage Taken 14143 | . 809 731 1630 692 73 . 1255 207 206 . 694 2700 995 344 446 1289 2072 Core 1740 | . 119 116 228 120 . . 89 32 18 . 120 414 120 . 91 90 183 Absorbed by Shields 782 | . . . 7 . . . 400 . . . . 97 . . 7 . 271 Ignored by Resistances 174 | . . . . . . . 16 . . . . 51 . . . . 107 Regen/Repaired (Parts) 88 | . . . . . . . . . . . . . . . 88 . . Core Remaining (%) 43 | 100 . 6 . . . 13 . . . . 69 . . . . 28 . Volleys Fired 652 | 19 65 10 118 47 5 . 55 22 3 . 27 108 57 14 24 45 33 Largest 2 | 2 2 2 2 2 2 . 2 2 1 . 2 2 2 1 1 1 2 Hottest 183 | 40 40 40 112 46 46 . 175 165 39 . 183 183 183 90 90 81 180 Shots Fired 1049 | 38 130 20 230 92 11 . 101 33 3 . 40 159 71 15 24 46 36 Gun 626 | 38 130 20 230 92 11 . 80 22 . . 3 . . . . . . Cannon 404 | . . . . . . . 18 11 . . 35 159 64 11 24 46 36 Launcher 19 | . . . . . . . 3 . 3 . 2 . 7 4 . . . Special . | . . . . . . . . . . . . . . . . . . Kinetic 596 | 38 130 20 225 92 11 . 80 . . . . . . . . . . Thermal 304 | . . . 5 . . . 18 33 . . 28 137 64 10 6 . 3 Explosive 19 | . . . . . . . 3 . 3 . 2 . 7 4 . . . Electromagnetic 100 | . . . . . . . . . . . 10 22 . 1 18 46 3 Entropic 30 | . . . . . . . . . . . . . . . . . 30 Robot Hit Streak 31 | 7 11 9 16 14 11 . 21 31 8 . 8 15 10 . 7 12 12 Robot Miss Streak 6 | 3 4 2 4 3 . . 2 1 . . 6 3 2 2 4 5 3 Penetration Max 1 | . . . . . . . 1 . . . . . . . . . . Secondary Targets 5 | . . . 2 1 . . 2 . . . . . . . . . . Max Gunslinging Chain 1 | . . . 1 1 . . 1 . . . . . . . . . . Capacitor 40 | . . . . . . . . . . . . . 29 11 . . . Shots Hit Robots 713 | 22 88 16 176 71 10 . 80 15 1 . 29 87 44 . 17 32 25 Core Hits 310 | 10 36 4 63 29 2 . 30 10 8 . 13 28 38 7 9 13 10 Critical Kills 7 | . . . 3 1 . . 1 . . . . 2 . . . . . Critical Parts Destroyed 4 | . . . 3 . . . 1 . . . . . . . . . . Critical Strikes 25 | . . . 6 1 . . 2 . . . 2 3 . . . . 11 Meltdown 2 | . . . . . . . . . . . . 2 . . . . . Destroy 7 | . . . 4 1 . . 2 . . . . . . . . . . Smash 2 | . . . 2 . . . . . . . . . . . . . . Sever 3 | . . . . . . . . . . . 2 1 . . . . . Sunder 11 | . . . . . . . . . . . . . . . . . 11 Melee Attacks 57 | . . . 23 1 . . 1 1 . . 20 10 . . . . 1 Impact 25 | . . . 23 1 . . 1 . . . . . . . . . . Slashing 32 | . . . . . . . . 1 . . 20 10 . . . . 1 Piercing . | . . . . . . . . . . . . . . . . . . Sneak Attacks 5 | . . . 3 . . . . . . . . 2 . . . . . Combat Hostiles . | . . . . . . . . . . . . . . . . . . Follow-up Attacks . | . . . . . . . . . . . . . . . . . . Damage Inflicted 21033 | 242 1163 203 3550 1093 191 . 2003 358 594 . 1368 4178 2331 272 616 1140 1731 Guns 7128 | 242 1149 203 2523 1070 151 . 1381 358 . . 51 . . . . . . Cannons 8632 | . . . . . . . 306 . . . 497 3126 1415 . 616 1055 1617 Explosions 2886 | . . . . . . . 312 . 594 . 73 546 916 272 . 85 88 Melee 2117 | . . . 934 . . . . . . . 747 436 . . . . . Ramming 270 | . 14 . 93 23 40 . 4 . . . . 70 . . . . 26 Kinetic 6632 | 242 1149 203 2436 1070 151 . 1381 . . . . . . . . . . Thermal 6069 | . . . 87 . . . 306 358 . . 289 3049 1415 . 256 85 224 Explosive 2167 | . . . . . . . 312 . 594 . 73 . 916 272 . . . Electromagnetic 2317 | . . . . . . . . . . . 259 623 . . 360 1055 20 Impact 934 | . . . 934 . . . . . . . . . . . . . . Slashing 1183 | . . . . . . . . . . . 747 436 . . . . . Piercing . | . . . . . . . . . . . . . . . . . . Entropic 1461 | . . . . . . . . . . . . . . . . . 1461 Highest Corruption 17 | . . . 6 6 6 . 7 7 . . 3 17 17 17 17 11 5 Average Corruption 8 | . . . 5 6 6 . 3 5 . . 2 13 17 17 5 10 4 Corruption Purged 7 | . . . . . . . . 7 . . . . . . . . . Corruption Blocked . | . . . . . . . . . . . . . . . . . . Effects 364 | . . . 43 20 18 . 21 28 . . 20 73 66 18 12 43 2 Message Errors 88 | . . . 10 3 6 . 4 6 . . 4 18 19 3 2 13 . Matter Fused 93 | . . . 18 5 2 . 5 9 . . 3 17 16 4 6 8 . Heat Flow Errors 38 | . . . 3 . 1 . 2 4 . . 5 13 4 3 . 3 . Energy Discharges 37 | . . . 3 8 3 . 2 1 . . 2 2 5 2 2 7 . Parts Rejected 7 | . . . . . 1 . . . . . . 2 2 . . 1 1 Parts Fused 3 | . . . . . . . . 1 . . . . 1 . . 1 . Data Loss (minor) 45 | . . . 5 2 2 . 5 2 . . 2 9 6 2 2 7 1 Data Loss (major) 14 | . . . . . 1 . . . . . . 3 6 2 . 2 . Misfires 14 | . . . 1 . 1 . 2 2 . . 3 1 2 1 . 1 . Alerts 8 | . . . 1 . 1 . . 1 . . 1 1 2 1 . . . Misdirections 2 | . . . . . . . . . . . . 2 . . . . . Weapon Failures 15 | . . . 2 2 . . 1 2 . . . 5 3 . . . . Overload Shots . | . . . . . . . . . . . . . . . . . . Overflow Damage 1161 | . . . 290 . . . 37 . . . 195 472 51 3 . . 113 Projectiles 231 | . . . . . . . . . . . . 109 42 . . . 80 Explosions 342 | . . . . . . . 37 . . . 6 254 9 3 . . 33 Melee 588 | . . . 290 . . . . . . . 189 109 . . . . . Knockbacks 3 | . . . 3 . . . . . . . . . . . . . . Impact 3 | . . . 3 . . . . . . . . . . . . . . Kinetic . | . . . . . . . . . . . . . . . . . . Secondary . | . . . . . . . . . . . . . . . . . . Self-Inflicted Damage 518 | . . . 5 . . . 29 . . . 5 159 63 107 . 86 64 Shots 10 | . . . . . . . 1 . . . 1 2 1 3 . 1 1 Rammed 22 | 1 3 . 9 2 6 . 1 . . . . . . . . . . Targets Rammed 31 | 1 3 . 11 2 6 . 1 . . . . 5 . . . . 2 Kicked 7 | . . . . . . . . . . . . 5 . . . . 2 Crushed 2 | . . . 2 . . . . . . . . . . . . . . Highest Temperature 596 | . 33 68 208 4 144 . 231 270 . . 480 596 329 283 580 227 39 Average Temperature 94 | . 8 29 32 4 80 . 45 88 . . 126 103 102 106 159 65 23 Received Heat Transfer 3145 | . 483 189 736 303 36 . 287 75 . . 9 420 243 12 36 126 190 Effects 12 | . . . . . . . . . . . 5 6 1 . . . . Shutdowns 3 | . . . . . . . . . . . 1 1 1 . . . . Energy Bleed 4 | . . . . . . . . . . . 3 1 . . . . . Interference 3 | . . . . . . . . . . . . 3 . . . . . Short Circuit 1 | . . . . . . . . . . . 1 . . . . . . Damage (core) 1 | . . . . . . . . . . . . 1 . . . . . Siege Activations . | . . . . . . . . . . . . . . . . . . Martial Activations . | . . . . . . . . . . . . . . . . . . Shielding Activations . | . . . . . . . . . . . . . . . . . . Robots Disrupted . | . . . . . . . . . . . . . . . . . . Combat Hostiles . | . . . . . . . . . . . . . . . . . . Robots Corrupted 12 | . . . 4 . . . . . . . 1 4 . . . 3 . Combat Hostiles 9 | . . . 2 . . . . . . . 1 3 . . . 3 . Parts Fried 30 | . . . 9 . . . . . . . . 11 . . 5 5 . Impact Corruptions 10 | . . . 9 . . . . . . . . 1 . . . . . Robots Melted 5 | . . . . . . . . 1 . . . 4 . . . . . Combat Hostiles 5 | . . . . . . . . 1 . . . 4 . . . . . Parts Melted 17 | . . . 1 . . . 1 2 . . 2 9 1 . 1 . . Heat Transferred 7017 | . . . 185 . . . 370 850 . . 348 3258 1573 . 222 50 161 Parts Sabotaged 1 | . . . . . . . . . . . . . . . 1 . . Parts Stolen . | . . . . . . . . . . . . . . . . . . Parts Stripped . | . . . . . . . . . . . . . . . . . . Power Chain Reactions 2 | . . . . . . . . . . . . . . . . 1 1 Alert | -11 -10 -10 -9 -9 -9 -9 -6 -6 -6 -6 -5 -5 -5 -5 -5 -4 -4 ------- Run | Yrd Mat Min Mat Sto Rec Scr Fac Low Low Dat Pro Fac Upp Upp War Pro Fac Maximum Alert Level 2 | . . . 1 1 . . . . . . . 2 . . . . . Low Security (%) 84 | 100 100 100 65 91 100 . 100 . . . . 69 . . . . 100 Level 1 13 | . . . 34 8 . . . . . . . 20 . . . . . Level 2 2 | . . . . . . . . . . . . 10 . . . . . Level 3 . | . . . . . . . . . . . . . . . . . . Level 4 . | . . . . . . . . . . . . . . . . . . Level 5 . | . . . . . . . . . . . . . . . . . . High Security . | . . . . . . . . . . . . . . . . . . Max Security . | . . . . . . . . . . . . . . . . . . Peak Influence 499 | 15 135 69 346 236 132 . 93 . . . . 499 . . . . 104 Initial 300 | . . 49 . 118 82 . . . . . . 300 . . . . . Average 114 | 2 37 42 165 133 50 . 29 . . . . 217 . . . . 12 Influence Increases 5384 | 40 466 50 1048 400 182 . 431 85 160 . 270 1273 210 140 95 290 244 Destroy 0b10 Robot/C 2800 | . 260 40 660 220 20 . 260 60 140 . 120 400 120 100 80 180 140 Destroy 0b10 Robot/NC 240 | 40 25 . 65 40 . . 5 . . . 25 40 . . . . . Destroy Leader 652 | . 74 10 172 104 . . 80 10 20 . 20 102 . 10 . 20 30 Successful Hack 222 | . 77 . 19 5 12 . 54 . . . . 43 . . . . 12 Select Force Hacks 240 | . 30 . 60 . 150 . . . . . . . . . . . . Disable Machine 150 | . . . 15 30 . . 15 . . . . 90 . . . . . Destroy Structure 300 | . . . 12 1 . . 17 . . . . 238 . . . . 32 Advance Influence 300 | . . . . . . . . . . . . 300 . . . . . Lose Combat Pursuer 480 | . . . 45 . . . . 15 . . 105 60 90 30 15 90 30 Influence Decreases 5320 | 40 339 177 767 469 394 . 418 98 160 . 270 786 613 224 95 290 180 Entered New Map 574 | . . 78 . 163 130 . . 5 . . . . 181 17 . . . Time Decay 3926 | 40 329 50 557 286 264 . 356 93 160 . 235 616 332 187 95 250 76 Search Patrol Dispatched 100 | . . . . . . . . . . . . 100 . . . . . Lost Part 570 | . 10 49 60 20 . . 62 . . . 35 70 100 20 . 40 104 Purge Threat 150 | . . . 150 . . . . . . . . . . . . . . Squads Dispatched 33 | . 3 . 2 2 . . 4 . . . . 19 . . . . 3 Investigation 13 | . 3 . 2 1 . . 1 . . . . 5 . . . . 1 Extermination 7 | . . . . . . . 2 . . . . 4 . . . . 1 Reinforcement 9 | . . . . . . . 1 . . . . 7 . . . . 1 Assault . | . . . . . . . . . . . . . . . . . . Garrison 4 | . . . . 1 . . . . . . . 3 . . . . . Intercept . | . . . . . . . . . . . . . . . . . . Searches Triggered 1 | . . . . . . . . . . . . 1 . . . . . Data Miner Redirects 2 | . . . . . . . . . . . . 2 . . . . . Construction Impeded 6 | . . . . . . . . . . . . 5 . . . . 1 Haulers Reinforced . | . . . . . . . . . . . . . . . . . . Active Scanning Responses . | . . . . . . . . . . . . . . . . . . Cargo Convoy Interrupts 1 | . . . . . . . . . . . . 1 . . . . . Stealth | -11 -10 -10 -9 -9 -9 -9 -6 -6 -6 -6 -5 -5 -5 -5 -5 -4 -4 --------- Run | Yrd Mat Min Mat Sto Rec Scr Fac Low Low Dat Pro Fac Upp Upp War Pro Fac Distress Signals 10 | . 1 . 6 1 . . . . . . . 2 . . . . . Communications Jammed . | . . . . . . . . . . . . . . . . . . Distress Signals . | . . . . . . . . . . . . . . . . . . Times Spotted 276 | . 19 12 50 15 1 . 15 3 6 . 14 33 17 7 55 14 15 Peak Tracking Total 9 | . 4 9 5 4 1 . 4 2 4 . 3 6 5 5 6 4 8 Tactical Retreats 23 | . . . 3 . . . . 1 . . 6 3 2 1 1 5 1 Traps | -11 -10 -10 -9 -9 -9 -9 -6 -6 -6 -6 -5 -5 -5 -5 -5 -4 -4 ------- Run | Yrd Mat Min Mat Sto Rec Scr Fac Low Low Dat Pro Fac Upp Upp War Pro Fac Traps Triggered 10 | . 4 . 2 . . . 1 . . . . 2 . . 1 . . Indirectly . | . . . . . . . . . . . . . . . . . . Trap Hack Attempts . | . . . . . . . . . . . . . . . . . . Triggered . | . . . . . . . . . . . . . . . . . . Disarmed . | . . . . . . . . . . . . . . . . . . Reprogrammed . | . . . . . . . . . . . . . . . . . . Reused . | . . . . . . . . . . . . . . . . . . Traps Extracted . | . . . . . . . . . . . . . . . . . . Installed . | . . . . . . . . . . . . . . . . . . Triggered . | . . . . . . . . . . . . . . . . . . Machines | -11 -10 -10 -9 -9 -9 -9 -6 -6 -6 -6 -5 -5 -5 -5 -5 -4 -4 ---------- Run | Yrd Mat Min Mat Sto Rec Scr Fac Low Low Dat Pro Fac Upp Upp War Pro Fac Machines Disabled 10 | . . . 1 2 . . 1 . . . . 6 . . . . . Max in Single Turn 3 | . . . 1 1 . . 1 . . . . 3 . . . . . Machines Repaired . | . . . . . . . . . . . . . . . . . . Machines Dismantled . | . . . . . . . . . . . . . . . . . . Machines Sabotaged . | . . . . . . . . . . . . . . . . . . Overloaded Fab Kills . | . . . . . . . . . . . . . . . . . . Hacking | -11 -10 -10 -9 -9 -9 -9 -6 -6 -6 -6 -5 -5 -5 -5 -5 -4 -4 --------- Run | Yrd Mat Min Mat Sto Rec Scr Fac Low Low Dat Pro Fac Upp Upp War Pro Fac Machines Accessed 69 | . 9 . 14 4 10 3 7 1 1 3 . 13 . . 2 . 2 Terminals 37 | . 8 . 11 2 5 . 5 1 . . . 4 . . . . 1 Fabricators 3 | . . . . . . . 1 . . . . 2 . . . . . Repair Stations . | . . . . . . . . . . . . . . . . . . Recycling Units 15 | . 1 . 2 1 5 . 1 . . . . 4 . . . . 1 Scanalyzers 4 | . . . 1 . . . . . . . . 3 . . . . . Garrison Access 1 | . . . . 1 . . . . . . . . . . . . . Total Hacks 221 | . 44 . 36 10 30 10 21 1 1 22 . 36 . . 5 . 5 Successful 141 | . 28 . 22 6 16 10 11 1 1 22 . 16 . . 5 . 3 Failed 79 | . 16 . 13 4 14 . 10 . . . . 20 . . . . 2 Catastrophic 12 | . 3 . 1 1 . . 4 . . . . 3 . . . . . Database Lockouts 1 | . . . 1 . . . . . . . . . . . . . . Manual 124 | . 40 . 23 7 23 . 13 . . . . 16 . . 1 . 1 Terminals 128 | . 41 . 29 7 18 . 18 1 . . . 10 . . . . 4 Fabricators 10 | . . . . . . . 2 . . . . 8 . . . . . Repair Stations . | . . . . . . . . . . . . . . . . . . Recycling Units 32 | . 3 . 4 1 12 . 1 . . . . 10 . . . . 1 Scanalyzers 11 | . . . 3 . . . . . . . . 8 . . . . . Garrison Access 2 | . . . . 2 . . . . . . . . . . . . . Terminal Hacks 75 | . 15 . 7 2 2 10 5 1 1 22 . 3 . . 5 . 2 Record 17 | . . . . . . 10 . 1 . 6 . . . . . . . Part Schematic 9 | . . . . . . . 1 . . 8 . . . . . . . Robot Schematic 5 | . . . . . . . . . . 5 . . . . . . . Robot Analysis 4 | . 4 . . . . . . . . . . . . . . . . Prototype ID Bank 23 | . 9 . 4 1 1 . . . . 3 . . . . 4 . 1 Open Door 2 | . . . . . . . . . 1 . . . . . 1 . . Branch Access Points 2 | . . . . . . . 1 . . . . . . . . . 1 Terminal Index 5 | . 1 . . 1 1 . 1 . . . . 1 . . . . . Unreport Threat 1 | . . . 1 . . . . . . . . . . . . . . Locate Traps 1 | . . . 1 . . . . . . . . . . . . . . Transport Status 1 | . . . . . . . . . . . . 1 . . . . . Hauler Manifests 3 | . 1 . 1 . . . 1 . . . . . . . . . . Registered Components 2 | . . . . . . . 1 . . . . 1 . . . . . Fabricator Hacks 4 | . . . . . . . . . . . . 4 . . . . . Network Status 1 | . . . . . . . . . . . . 1 . . . . . Load Schematic 2 | . . . . . . . . . . . . 2 . . . . . Build 1 | . . . . . . . . . . . . 1 . . . . . Repair Station Hacks . | . . . . . . . . . . . . . . . . . . Recycling Unit Hacks 6 | . 1 . 2 1 1 . . . . . . 1 . . . . . Retrieve Components 6 | . 1 . 2 1 1 . . . . . . 1 . . . . . Scanalyzer 5 | . . . 3 . . . . . . . . 2 . . . . . Insert Component 1 | . . . 1 . . . . . . . . . . . . . . Analyze 2 | . . . 2 . . . . . . . . . . . . . . Retrieve Study 2 | . . . . . . . . . . . . 2 . . . . . Garrison Access Hacks . | . . . . . . . . . . . . . . . . . . Unauthorized Hacks 50 | . 11 . 10 3 13 . 6 . . . . 6 . . . . 1 Terminals 36 | . 10 . 8 3 8 . 5 . . . . 2 . . . . . Track 3 | . 1 . . . . . . . . . . 2 . . . . . Assimilate 1 | . . . . . . . 1 . . . . . . . . . . Botnet 14 | . 3 . 3 1 4 . 3 . . . . . . . . . . Operators 2 | . 1 . . . . . 1 . . . . . . . . . . Skim 16 | . 5 . 5 2 4 . . . . . . . . . . . . Fabricators 2 | . . . . . . . . . . . . 2 . . . . . Haulers 1 | . . . . . . . . . . . . 1 . . . . . Recompile 1 | . . . . . . . . . . . . 1 . . . . . Repair Stations . | . . . . . . . . . . . . . . . . . . Recycling Units 12 | . 1 . 2 . 5 . 1 . . . . 2 . . . . 1 Tunnel 8 | . 1 . 2 . 5 . . . . . . . . . . . . Fedlink 4 | . . . . . . . 1 . . . . 2 . . . . 1 Scanalyzers . | . . . . . . . . . . . . . . . . . . Garrison Access . | . . . . . . . . . . . . . . . . . . Data Cores Recovered 3 | . 2 . 1 . . . . . . . . . . . . . . Used 1 | . 1 . . . . . . . . . . . . . . . . Hacking Detections 51 | . 8 . 12 3 7 . 6 1 . . . 13 . . . . 1 Full Trace Events 6 | . 1 . 1 1 1 . . . . . . 2 . . . . . Feedback Events . | . . . . . . . . . . . . . . . . . . Feedback Blocked . | . . . . . . . . . . . . . . . . . . Robot Schematics Acquired 5 | . . . . . . . . . . 5 . . . . . . . Robots Built . | . . . . . . . . . . . . . . . . . . Authchips . | . . . . . . . . . . . . . . . . . . Time . | . . . . . . . . . . . . . . . . . . Total Robot Build Rating . | . . . . . . . . . . . . . . . . . . Part Schematics Acquired 10 | . . . 1 . . . 1 . . 8 . . . . . . . Parts Built 1 | . . . . . . . . . . . . 1 . . . . . Authchips 1 | . . . . . . . . . . . . 1 . . . . . Time 56 | . . . . . . . . . . . . 56 . . . . . Total Part Build Rating 6 | . . . . . . . . . . . . 6 . . . . . Part Studies Acquired 2 | . . . . . . . . . . . . 2 . . . . . Parts Repaired . | . . . . . . . . . . . . . . . . . . Time . | . . . . . . . . . . . . . . . . . . Parts Recycled . | . . . . . . . . . . . . . . . . . . Recycled Matter . | . . . . . . . . . . . . . . . . . . Retrieved Matter . | . . . . . . . . . . . . . . . . . . Retrieved Components 31 | . 10 . 14 3 3 . . . . . . 1 . . . . . Parts Scanalyzed 1 | . . . 1 . . . . . . . . . . . . . . Part Schematics Acquired 1 | . . . 1 . . . . . . . . . . . . . . Parts Damaged . | . . . . . . . . . . . . . . . . . . Bothacking | -11 -10 -10 -9 -9 -9 -9 -6 -6 -6 -6 -5 -5 -5 -5 -5 -4 -4 ------------ Run | Yrd Mat Min Mat Sto Rec Scr Fac Low Low Dat Pro Fac Upp Upp War Pro Fac Used RIF Installer . | . . . . . . . . . . . . . . . . . . Robots Hacked . | . . . . . . . . . . . . . . . . . . Non-combat . | . . . . . . . . . . . . . . . . . . Combat . | . . . . . . . . . . . . . . . . . . Robot Hacks Applied . | . . . . . . . . . . . . . . . . . . Relay Couplers Released . | . . . . . . . . . . . . . . . . . . Fabnet Peak Effective % . | . . . . . . . . . . . . . . . . . . Robots Rewired 1 | . . . . . . . . . . . . . 1 . . . . Allies Hacked . | . . . . . . . . . . . . . . . . . . Hacks Repelled . | . . . . . . . . . . . . . . . . . . Allies | -11 -10 -10 -9 -9 -9 -9 -6 -6 -6 -6 -5 -5 -5 -5 -5 -4 -4 -------- Run | Yrd Mat Min Mat Sto Rec Scr Fac Low Low Dat Pro Fac Upp Upp War Pro Fac Total Allies 1 | . . . . . . . . . . . . . 1 . . . . Largest Group 1 | . . . . . . . . . . . . . 1 . . . . Highest-Rated Group 31 | . . . . . . . . . . . . . 31 . . . . Highest-Rated Ally 31 | . . . . . . . . . . . . . 31 . . . . Total Orders . | . . . . . . . . . . . . . . . . . . Ally Attacks 7 | . . . . . . . . . . . . . 7 . . . . Total Damage 127 | . . . . . . . . . . . . . 127 . . . . Kills . | . . . . . . . . . . . . . . . . . . Allies Corrupted . | . . . . . . . . . . . . . . . . . . Allies Melted 2 | . . . . . . . . . . . . . . . 2 . . Intel | -11 -10 -10 -9 -9 -9 -9 -6 -6 -6 -6 -5 -5 -5 -5 -5 -4 -4 ------- Run | Yrd Mat Min Mat Sto Rec Scr Fac Low Low Dat Pro Fac Upp Upp War Pro Fac Active Infowar (turns) 10401 | 49 843 8 222 . . . 675 1090 1393 186 1220 1605 1230 383 100 1094 303 Sensors 8587 | . . . . . . . . 1090 1393 186 1220 1605 1230 383 100 1077 303 Seismic 1797 | 49 843 8 222 . . . 675 . . . . . . . . . . Jamming 17 | . . . . . . . . . . . . . . . . 17 . Robot Analysis Total 4 | . 4 . . . . . . . . . . . . . . . . Derelict Logs Recovered 10 | . . . . . . . . 2 1 . 2 . 2 1 . 2 . Drone Launches . | . . . . . . . . . . . . . . . . . . Drone Recoveries . | . . . . . . . . . . . . . . . . . . Exploration | -11 -10 -10 -9 -9 -9 -9 -6 -6 -6 -6 -5 -5 -5 -5 -5 -4 -4 ------------- Run | Yrd Mat Min Mat Sto Rec Scr Fac Low Low Dat Pro Fac Upp Upp War Pro Fac Turns Passed 19624 | 228 1366 115 2100 622 713 2095 1186 1212 1409 186 1404 2052 1451 422 1365 1225 473 Spaces Moved 10592 | 99 809 66 983 253 427 1231 566 697 734 78 643 1060 815 268 837 782 244 Core 2 | 2 . . . . . . . . . . . . . . . . . Treads 5200 | 97 198 . 700 253 427 1231 566 697 734 78 219 . . . . . . Legs 3555 | . . . . . . . . . . . 424 1060 665 . 380 782 244 Wheels 1835 | . 611 66 283 . . . . . . . . . 150 268 457 . . Hover . | . . . . . . . . . . . . . . . . . . Flight . | . . . . . . . . . . . . . . . . . . Fastest Speed 50 | 50 120 105 120 160 160 160 160 160 160 240 120 107 111 130 100 104 106 Average Speed 149 | 157 129 120 148 160 160 160 162 160 186 240 186 138 152 143 131 105 106 Slowest Speed 260 | 160 160 135 160 160 160 160 240 160 240 240 240 260 178 145 250 106 110 Overloaded Moves . | . . . . . . . . . . . . . . . . . . Propulsion Burnouts . | . . . . . . . . . . . . . . . . . . Robots Hopped . | . . . . . . . . . . . . . . . . . . Potential Cave-ins 3 | . . . . . . . . . . . . 3 . . . . . Cave-ins Triggered 1 | . . . . . . . . . . . . 1 . . . . . Exploration Rate (%) 59 | 4 94 20 81 45 90 86 13 83 76 69 61 28 88 51 85 84 5 Regions Visited 17 Branch Regions 12 Pre-discovered Areas 15 | . 2 . 4 . 5 . . . . 1 1 1 . . . 1 . Known Exits Taken 14 | . 1 1 1 . 1 . 1 1 1 1 1 1 1 1 1 1 . Unknown Exits Taken 3 | 1 . . . 1 . 1 . . . . . . . . . . . Scrap Searched 23 | . . . . . . 5 . 5 5 . 4 . 2 1 . 1 . Spaces Dug 129 | . . . 6 . . . 19 6 11 . 13 34 13 26 . . 1 Terrain Destroyed 415 | . . . 6 . . . 22 12 36 . 37 167 64 51 . 5 15 Melee 11 | . . . 6 . . . 1 1 . . 2 . . . . . 1 Projectile 145 | . . . . . . . 7 11 . . 19 66 24 10 . . 8 AOE 259 | . . . . . . . 14 . 36 . 16 101 40 41 . 5 6 Terrain Rammed . | . . . . . . . . . . . . . . . . . . Walls Destroyed . | . . . . . . . . . . . . . . . . . . Machines Disabled . | . . . . . . . . . . . . . . . . . . Actions | -11 -10 -10 -9 -9 -9 -9 -6 -6 -6 -6 -5 -5 -5 -5 -5 -4 -4 --------- Run | Yrd Mat Min Mat Sto Rec Scr Fac Low Low Dat Pro Fac Upp Upp War Pro Fac Total 13191 | 129 993 81 1349 374 442 1356 746 753 765 78 773 1455 972 297 1085 1128 415 Wait 1233 | . 70 . 130 43 2 118 47 12 . . 40 173 34 . 165 284 115 Move 10574 | 98 808 65 982 252 426 1230 565 696 733 77 642 1058 814 267 836 781 244 Hop . | . . . . . . . . . . . . . . . . . . Pick Up 135 | 3 21 . 23 5 . 3 22 4 4 . 9 15 5 2 13 5 1 Fast Attach 53 | 7 3 . 2 . 1 . 6 . 2 . 1 11 7 . 8 3 2 Attach 68 | . 2 4 11 2 . 1 12 1 1 1 4 8 4 3 2 4 8 Detach 9 | . 2 . . . . . . . 1 . 1 1 1 1 2 . . Swap 225 | 1 11 2 24 13 2 . 23 14 15 . 23 44 16 10 12 6 9 Drop 113 | . 8 . 20 9 . 3 14 3 6 . 5 21 3 . 21 . . Fire 652 | 19 65 10 118 47 5 . 55 22 3 . 27 108 57 14 24 45 33 Melee 57 | . . . 23 1 . . 1 1 . . 20 10 . . . . 1 Ram 1 | . . . 1 . . . . . . . . . . . . . . Kick 7 | . . . . . . . . . . . . 5 . . . . 2 Crush 23 | 1 3 . 10 2 6 . 1 . . . . . . . . . . Escape Stasis 1 | . . . . . . . . . . . . 1 . . . . . Rewire 39 | . . . 5 . . . . . . . 1 . 31 . 2 . . Trap . | . . . . . . . . . . . . . . . . . . Miscellaneous 1 | . . . . . . 1 . . . . . . . . . . . Route ------- -11/Scrapyard -10/Materials (discovered 6 exits: *Mat x3 / *Min x2 / Sub) -10/Mines -9/Materials (discovered 6 exits: *Mat x3 / [*Min] / *Sto x2) -9/Storage (discovered 2 exits: Mat / *Rec) -9/Recycling (discovered 2 exits: *Fac / *Scr) -9/Scraptown (discovered 2 exits: *Fac x2) -6/Factory (discovered 2 exits: *Low x2) -6/Lower Caves -6/Lower Caves (discovered 2 exits: *Fac / *Dat) -6/Data Miner -5/Proximity Caves -5/Factory (discovered 4 exits: *Fac x3 / *Upp) -5/Upper Caves -5/Upper Caves -5/Warlord -4/Proximity Caves -4/Factory (discovered 5 exits: Upp x2 / Ext x2 / Arm) History --------- Turn | Location | Event 6 | -11/Scrapyard | Discovered new exit (range 15) 229 | -11/Scrapyard | Entered Materials 306 | -10/Materials | Build established: Mutant 770 | -10/Materials | Discovered new exit (range 13) 876 | -10/Materials | Learned location of Storage (-9) 927 | -10/Materials | Learned 2 Mines zone layouts 967 | -10/Materials | Identified exit to Mines 988 | -10/Materials | Discovered new exit (range 7) 996 | -10/Materials | Identified exit to Materials 996 | -10/Materials | Identified exit to Subcaves 1014 | -10/Materials | Learned Storage stockpile data 1595 | -10/Materials | Entered Mines 1622 | -10/Mines | Core integrity fell below 50% 1687 | -10/Mines | Assembled infested the area 1692 | -10/Mines | Assisted by a Guerilla fighting off Assembled 1706 | -10/Mines | Core integrity fell below 20% 1710 | -10/Mines | Entered Materials 1710 | -9/Materials | Evolved 2 slots: Propulsion x1, Utility x1 1711 | -9/Materials | Identified exit to Storage 1737 | -9/Materials | Lost 7 parts (1p2n1u3w) 2366 | -9/Materials | Discovered new exit (range 14) 2511 | -9/Materials | Learned 4 Recycling zone layouts 2550 | -9/Materials | Learned location of 1 exit from Recycling 2612 | -9/Materials | Identified exit to Materials 2635 | -9/Materials | Discovered exit to Materials (range 12) 2892 | -9/Materials | Central database locked down 3444 | -9/Materials | Core integrity fell below 50% 3804 | -9/Materials | Build established: Scavenger-Mutant 3810 | -9/Materials | Entered Storage 4252 | -9/Storage | Core integrity fell below 20% 4340 | -9/Storage | Used back door to open Recycling access 4340 | -9/Storage | Discovered new exit (range 5) 4370 | -9/Storage | Garrison activated, responded to threat 4432 | -9/Storage | Entered Recycling 4433 | -9/Recycling | Identified exit to Factory 4434 | -9/Recycling | Identified exit to Scraptown 5104 | -9/Recycling | Scanned before Scraplab entrance 5129 | -9/Recycling | Entered Scraplab 5145 | -9/Recycling | Entered Scraptown 5145 | -9/Scraptown | System corruption cleaned by C-Scrubber 5337 | -9/Scraptown | Visited UFD Registry 5337 | -9/Scraptown | Registered with UFD as "Nullsys" 5360 | -9/Scraptown | Visited Cyclists 5382 | -9/Scraptown | Entered Cyclist Reading Room 5411 | -9/Scraptown | Visited Shadow of the Wyrm 5413 | -9/Scraptown | Build established: Mutant 5440 | -9/Scraptown | Visited CPS Storage 5452 | -9/Scraptown | Visited Red Mages 5486 | -9/Scraptown | Visited Symbiants 5508 | -9/Scraptown | Visited Science Testing Area 5534 | -9/Scraptown | Visited TADAMA 5708 | -9/Scraptown | Heard Great Nut preacher, LISTEN AND RECITE! 5723 | -9/Scraptown | Discovered new exit (range 13) 5892 | -9/Scraptown | Visited Abandonware Association 5908 | -9/Scraptown | Learned abandonware demo "ERRANTS.EXE" 5908 | -9/Scraptown | Learned abandonware demo "KABOOM.EXE" 5944 | -9/Scraptown | Visited DA-N13 Charitable Foundation 5958 | -9/Scraptown | Found DCF Scrap (28 items) 6001 | -9/Scraptown | Visited A0-MCA Data Center 6011 | -9/Scraptown | Given an A- rating by A0-MCA 6014 | -9/Scraptown | Found A0-MCA's Component Scanner 6130 | -9/Scraptown | Visited Junk Repository 6175 | -9/Scraptown | Visited Research Penetration Think Tank 6212 | -9/Scraptown | Visited Scrapoid Pod Storage 6226 | -9/Scraptown | Visited Scrapoid Research Area 6253 | -9/Scraptown | Visited Chapter 10 6338 | -9/Scraptown | Visited LU-1G1's Boring Crew 7152 | -9/Scraptown | Met Optimus 7152 | -9/Scraptown | Accepted into 0bPrime 7237 | -9/Scraptown | Discovered new exit (range 3) 7240 | -9/Scraptown | Entered Factory 7240 | -6/Factory | Evolved 6 slots: Power x1, Propulsion x2, Utility x3 7501 | -6/Factory | Identified exit to Lower Caves 7542 | -6/Factory | Build established: Scavenger-Mutant 8051 | -6/Factory | Loaded intel: 8 recycling unit locations 8165 | -6/Factory | Lost 6 parts (1p4n1u) 8358 | -6/Factory | Spotted B-75 Beast 8426 | -6/Factory | Entered Lower Caves 8434 | -6/Lower Caves | Attracted the attention of an 0b10 checkpoint 8456 | -6/Lower Caves | Learned 4 Factory zone layouts 8860 | -6/Lower Caves | Learned location of 1 exit from Factory 9401 | -6/Lower Caves | Discovered new exit (range 13) 9422 | -6/Lower Caves | Identified exit to Lower Caves 9638 | -6/Lower Caves | Entered another Lower Caves area 9803 | -6/Lower Caves | Discovered new exit (range 8) 9813 | -6/Lower Caves | Identified exit to Factory 10171 | -6/Lower Caves | Learned location of 1 exit from Factory 11004 | -6/Lower Caves | Discovered new exit (range 7) 11018 | -6/Lower Caves | Identified exit to Data Miner 11047 | -6/Lower Caves | Entered Data Miner 11047 | -6/Data Miner | Discovered new exit (range 6) 11093 | -6/Data Miner | Met Data Miner 11139 | -6/Data Miner | Learned location of Section 7 (-2) 11139 | -6/Data Miner | Acquired the access code to Warlord's prototype stash 11167 | -6/Data Miner | Received God Mode back door access code from Data Miner 11230 | -6/Data Miner | Identified exit to Proximity Caves 11233 | -6/Data Miner | Entered Proximity Caves 11369 | -5/Proximity Caves | Spotter reported a threat 11560 | -5/Proximity Caves | Learned Factory emergency access door positions 11570 | -5/Proximity Caves | Learned location of Armory (-4) 11668 | -5/Proximity Caves | Spotter reported a threat 12289 | -5/Proximity Caves | Attracted the attention of an 0b10 checkpoint 12451 | -5/Proximity Caves | Discovered exit to Factory (range 13) 12637 | -5/Proximity Caves | Entered Factory 12637 | -5/Factory | Evolved 2 slots: Propulsion x1, Utility x1 12638 | -5/Factory | Identified exit to Factory 12639 | -5/Factory | Identified exit to Upper Caves 12937 | -5/Factory | Search patrols dispatched 13066 | -5/Factory | System corruption reached 10% 13148 | -5/Factory | Found Quantum Capacitor 13151 | -5/Factory | Found Quantum Capacitor 13186 | -5/Factory | Discovered exit to Factory (range 16) 13203 | -5/Factory | Fabricated Enh. Flexi-carbon Leg? 13328 | -5/Factory | Garrison activated, responded to threat 13428 | -5/Factory | Loaded intel: 7 recycling unit locations 13428 | -5/Factory | Learned location of Protoforge (-2) 13519 | -5/Factory | Cargo convoy interrupted 13876 | -5/Factory | Incoming investigation squad redirected 13884 | -5/Factory | Build established: Mutant 14433 | -5/Factory | Lost 3 parts (1n2u) 14480 | -5/Factory | Crushed by falling debris 14482 | -5/Factory | Incoming investigation squad redirected 14682 | -5/Factory | Build established: Scavenger-Mutant 14689 | -5/Factory | Entered Upper Caves 14835 | -5/Upper Caves | Attracted the attention of an 0b10 checkpoint 14884 | -5/Upper Caves | Lost 4 parts (1n1u2w) 15354 | -5/Upper Caves | Attacked by a faux Warlord 15398 | -5/Upper Caves | Lost 5 parts (2n2u1w) 15478 | -5/Upper Caves | Core integrity fell below 50% 15517 | -5/Upper Caves | Found DCF Scrap (13 items) 15804 | -5/Upper Caves | Discovered new exit (range 9) 15819 | -5/Upper Caves | Identified exit to Upper Caves 15826 | -5/Upper Caves | Build established: Derelict-Mutant 15890 | -5/Upper Caves | Learned 8 Factory zone layouts 15912 | -5/Upper Caves | Learned Factory emergency access door positions 16140 | -5/Upper Caves | Entered another Upper Caves area 16443 | -5/Upper Caves | Discovered new exit (range 8) 16451 | -5/Upper Caves | Identified exit to Warlord 16535 | -5/Upper Caves | Spotted B-75 Beast 16562 | -5/Upper Caves | Entered Warlord 16612 | -5/Warlord | System corruption cleaned by Quarantine Array 16655 | -5/Warlord | Opened Warlord's prototype stash 16659 | -5/Warlord | Found Prototype Reactor 16659 | -5/Warlord | Identified Vortex Chain Reactor 16667 | -5/Warlord | Found Prototype Processor 16687 | -5/Warlord | Found Prototype Device 16687 | -5/Warlord | Identified Exp. Focal Shield 17019 | -5/Warlord | Visited the Vortex Lab 17029 | -5/Warlord | Found Prototype Energy Cannon 17032 | -5/Warlord | Found Prototype Energy Cannon 17033 | -5/Warlord | Warlord's base attacked by MAIN.C 17195 | -5/Warlord | Rebuked by Warlord 17237 | -5/Warlord | P-80 Master assimilated allied PY-TQO(Y) 17238 | -5/Warlord | P-70 Sage assimilated allied 5V-X0B(Y) 17371 | -5/Warlord | Spotted Striker 17383 | -5/Warlord | Warlord forces counterattacked 17417 | -5/Warlord | Spotted Striker 17432 | -5/Warlord | Identified Exp. Targeting Computer 17432 | -5/Warlord | Identified Vortex Cannon (x2) 17469 | -5/Warlord | Lost 13 allies 17708 | -5/Warlord | Warlord base infiltrated, sounded retreat 17727 | -5/Warlord | Spotted Executioner 17735 | -5/Warlord | Destroyed Executioner 17767 | -5/Warlord | Build established: Scavenger-Mutant 17795 | -5/Warlord | Spotted Executioner 17799 | -5/Warlord | Spotted B-86 Titan 17817 | -5/Warlord | Found Exp. Thermal Shield 17823 | -5/Warlord | Lost 6 allies 17850 | -5/Warlord | Spotted Striker 17859 | -5/Warlord | Spotted Striker 17879 | -5/Warlord | Discovered new exit (range 15) 17891 | -5/Warlord | Identified exit to Proximity Caves 17913 | -5/Warlord | Lost 3 allies 17927 | -5/Warlord | Entered Proximity Caves 18394 | -4/Proximity Caves | Learned location of 1 exit from Research 18569 | -4/Proximity Caves | Attracted the attention of an 0b10 checkpoint 18696 | -4/Proximity Caves | Lost 3 parts (1u2w) 18838 | -4/Proximity Caves | Discovered exit to Factory (range 9) 18988 | -4/Proximity Caves | Received a Behemoth hack from an annoying Tinkerer 19152 | -4/Proximity Caves | Entered Factory 19152 | -4/Factory | Evolved 2 slots: Utility x1, Weapon x1 19153 | -4/Factory | Identified exit to Upper Caves 19154 | -4/Factory | Identified exit to Extension 19188 | -4/Factory | Loaded intel: 8 recycling unit locations 19437 | -4/Factory | Identified exit to Armory 19560 | -4/Factory | Lost 3 parts (1n1u1w) 19625 | -4/Factory | Self-destructed Last Messages --------------- 19611_ Penetrated by Slug. 19613_ System corrupted: Power Sword rejected. 19613_ M-13 Machinist fits Backup Laser I on P-70 Sage. 19613_ H-77 Assassin suffers critical hit (Sunder). 19613_ H-77 Assassin Myomer Leg ripped off. 19613_ H-77 Assassin destroyed. 19615_ M-13 Machinist fits Backup Power I on P-70 Sage. 19615_ Kicked R-10 Processor out of the way. 19617_ M-13 Machinist fits Unknown Hover Unit on P-70 Sage. 19618_ Component scanned: Backup Propulsion I [P-70 Sage]. 19619_ Destroyed Lgt. Nuclear Core. 19621_ Lgt. Antimatter Reactor destroyed. 19623_ U-05 Engineer builds a Door. 19623_ S-27 Virus destroyed. 19623_ Exp. Myomer Leg destroyed. Map ----- +----------------------------------------------------+ | #?????????????# """ # ### | | #?????????????# """ + | | #?????????????# """ # ### | | #?????????????# #####?? | | #?????????????# #?????? | | ################# #?????????????########?????? | | ????????????????# #??????????????????????????? | | ???????????????## #??????????????????????????? | | ???????????????# #??????????????????????????? | | ???????????????#T #??????????????????????????? | | ???############## ##########?????????????????? | | ???# # # ! #?????????????????? | | ???? !# # #?????????????????? | | ???? """""" # # #?????????????????? | | ???? """""" # # #?????????????????? | | ???# """""" # + #?????????????????? | | ???# """""" + # #?????????????????? | | ???# # # #?????????????????? | | ???# """""" # #?????????????????? | | ???? """""" "" # #?????????????????? | | ???? """""" T" # ##+###########?????????????? | | ???? """""" "" # # [ #?????????????? | | ???? # + #?????????????? | | ????############# #sk #?????????????? | | ????????????????# # #?????????????? | | ????????????????# # @ % #???????????### | | ????????????????# ###;/##################### | | ????????????????# ^ ####p###! ??? | | ????????????????# s|!/= ??? | | ???????????????## %/w#% " " """ ???? | | ???????????????## =*%+[""""" """""???????? | | ????????????????# u#*""""" ""??????????? | | ????????????????# # ?????????+?? | | ????????????????# # ??????????? | | ????????????????# ###+######??????????? | | ????????????????# ?? ???????????????? | | ????????????????# ?? ??????????????? | | ????????????????# ? ?????????????? | | ????????????????# ? ? ????????????? | | ????????????????# ? ??? ???????????? | | ?????????????????##############?????## ??????????? | | ?????????????????????????????????????????????????? | | ?????????????????????????????????????????????????? | | ?????????????????????????????????????????????????? | | ?????????????????????????????????????????????????? | | ?????????????????????????????????????????????????? | | ?????????????????????????????????????????????????? | | ?????????????????????????????????????????????????? | | ?????????????????????????????????????????????????? | | ?????????????????????????????????????????????????? | +----------------------------------------------------+ Best States ------------- Heat Dissipation 102 Energy Generation 55 Energy Capacity 700 Matter Stores 300 Matter Capacity 300 Sight Range 16 Robot Scan Range 15 Terrain Scan Density 10 Jamming Range 16 Armor Coverage 825 Resistance: EM 25 Weapon Cycling 15 Phase Shifting 5 Evasion (%) 70 Targeting Accuracy 12 Core Analysis 6 Recoil Reduction 5 Particle Charging 20 Offensive Hacking 12 Authchip Count 1 Item Schematics ----------------- Plasma Cutter | -9/Materials | Scanalyzed Adv. Sensor Array | -6/Factory | Hacked Combat Drone Bay | -6/Data Miner | Free Lgt. Regenerative Plating | -6/Data Miner | Free Enh. Flexi-carbon Leg | -6/Data Miner | Free Exp. Heat Sink | -6/Data Miner | Free Tesla Bomb Launcher | -6/Data Miner | Free Imp. Linear Gravjet | -6/Data Miner | Free Adv. Power Amplifier | -6/Data Miner | Free Hvy. Gauss Cannon | -6/Data Miner | Free Robot Schematics ------------------ R-10 Processor | -6/Data Miner | Free A-15 Conveyor | -6/Data Miner | Free B-48 Gladiator | -6/Data Miner | Free G-50 Soldier | -6/Data Miner | Free H-66 Slayer | -6/Data Miner | Free Fabricated ------------ Enh. Flexi-carbon Leg | x1 | -5/Factory | Authchip Repaired ---------- Nothing Studied --------- Carbon-fiber Leg | -5/Factory | Hacked Flexi-carbon Leg | -5/Factory | Hacked Alien Tech Used ----------------- None Achievements -------------- None Challenges ------------ None Game ------ Seed FieldthrustDataAirjet Manual? 0 Play Time 02:12:00 Cumulative 591.5 hours Start 2025.11.20 @ 20:11:50 End 2025.11.22 @ 12:19:26 Sessions 4 Manual Loads 0 Difficulty Rogue Special Mode None Game No. 309 Rogue 309 Adventurer 0 Explorer 0 Win Type - Total 28 Types 14/2/7/1/0/0/1/1/1/1 Lore% 94 Gallery% 90 Achievement% 81 Wizard Run 0 Options --------- Layout 2 ASCII 1 Keyboard 1 Movement Vi Keybinds 0 Fullscreen 1 Font 28/Terminus Map View 50x52 Zoom Use 0% Tactical HUD 1 Map Filters NONE Filters NONE Steam 1 RUN: f549412a-3129-4166-b6d3-725e3e618329